fUSD/lending_fUSD_20250911
["ID","MTS","AMOUNT","RATE_DAILY","PERIOD"]
[384833544,1757581832509,-439.11302697,0.0002795,2]
[384833545,1757581832532,-356.84453964,0.0002795,2]
[384833547,1757581832541,-594.7,0.00027951,30]
[384833549,1757581832550,-350.41992352,0.00028056,2]
[384833551,1757581832560,-300.0,0.00028084,2]
[384833553,1757581832569,-150.0,0.00028085,4]
[384833555,1757581832579,-150.0,0.00028085,4]
[384833557,1757581832588,-150.0,0.00028085,4]
[384833559,1757581832598,-150.0,0.00028085,4]
[384833561,1757581832607,-150.0,0.00028085,4]
[384833563,1757581832616,-150.0,0.00028085,4]
[384833565,1757581832624,-150.0,0.00028085,4]
[384833567,1757581832633,-150.0,0.00028085,4]
[384833569,1757581832642,-153.84432297,0.00028085,4]
[384833571,1757581832652,-166.75,0.00028098,2]
[384833573,1757581832661,-386.22925877,0.00028181,2]
[384833575,1757581832670,-150.0,0.00028201,7]
[384833577,1757581832680,-422.03859402,0.00028306,2]
[384833579,1757581832689,-457.84792927,0.00028431,2]
[384833581,1757581832698,-174.61919142,0.00028472,2]
[384833583,1757581832707,-276.8781832,0.00028472,2]
[384833585,1757581832715,-248.71531821,0.00028472,2]
[384833587,1757581832725,-493.65726452,0.00028556,2]
[384833589,1757581832735,-300.36,0.00028593,2]
[384833591,1757581832744,-529.46659977,0.00028681,2]
[384833593,1757581832753,-168.0,0.00028696,7]
[384833594,1757581832762,-481.0,0.000287,2]
[384833596,1757581832771,-170.0,0.00028767,14]
[384833598,1757581832781,-565.27593502,0.00028806,2]
[384833600,1757581832794,-194.0,0.00028853,7]
[384833602,1757581832804,-160.0,0.0002889,2]
[384833605,1757581832814,-601.08527027,0.00028931,2]
[384833606,1757581832823,-168.0,0.00028969,2]
[384833608,1757581832832,-542.4708941,0.00029,2]
[384833610,1757581832841,-636.89460552,0.00029056,2]
[384833611,1757581832851,-168.0,0.00029083,2]
[384833613,1757581832860,-672.70394077,0.00029181,2]
[384833615,1757581832870,-500.0,0.00029296,2]
[384833616,1757581832879,-500.0,0.00029296,2]
[384833617,1757581832889,-150.0,0.00029296,2]
[384833618,1757581832898,-150.0,0.00029296,2]
[384833619,1757581832907,-150.0,0.00029296,2]
[384833620,1757581832916,-300.0,0.00029296,2]
[384833621,1757581832926,-150.0,0.00029296,2]
[384833622,1757581832935,-150.0,0.00029296,2]
[384833623,1757581832944,-150.0,0.00029296,2]
[384833624,1757581832953,-152.70771985,0.00029296,2]
[384833625,1757581832962,-150.0,0.00029296,2]
[384833626,1757581832971,-500.0,0.00029296,2]
[384833627,1757581832980,-500.0,0.00029296,2]
[384833628,1757581832990,-150.0,0.00029296,2]
[384833629,1757581832999,-500.0,0.00029296,2]
[384833630,1757581833009,-150.0,0.00029296,2]
[384833631,1757581833018,-150.0,0.00029296,2]
[384833632,1757581833028,-500.0,0.00029296,2]
[384833633,1757581833038,-500.0,0.00029296,2]
[384833634,1757581833048,-500.0,0.00029296,2]
[384833635,1757581833059,-150.0,0.00029296,2]
[384833636,1757581833069,-150.0,0.00029296,2]
[384833637,1757581833079,-819.0,0.00029296,2]
[384833638,1757581833088,-500.0,0.00029296,2]
[384833639,1757581833098,-150.0,0.00029296,2]
[384833640,1757581833108,-202.67,0.00029296,2]
[384833641,1757581833117,-708.51327602,0.00029306,2]
[384833642,1757581833127,-168.0,0.00029356,2]
[384833643,1757581833136,-744.32261127,0.00029431,2]
[384833644,1757581833146,-181.26,0.00029448,2]
[384833645,1757581833157,-168.0,0.00029498,7]
[384833646,1757581833167,-181.23,0.00029499,2]
[384833647,1757581833176,-1600.0,0.000295,10]
[384833648,1757581833187,-181.23,0.00029507,2]
[384833649,1757581833196,-181.23,0.00029517,2]
[384833650,1757581833206,-52558.13456401,0.0002955,2]
[384834140,1757581843216,-616.22369755,0.000295,2]
[384834141,1757581843227,-1000.0898523,0.000295,2]
[384835675,1757581894502,1208.85097364,0.000249,2]
[384836076,1757582343819,2000.0,0.00024606,120]
[384836077,1757582343931,1733.74664572,0.00023488,120]
[384836104,1757582397094,224.85,0.00016438,2]
[384836347,1757582708229,95467.75429125,0.00018,2]
[384836361,1757582743297,15658.36598548,0.0002,2]
[384836388,1757582766639,180.52344109,0.000215,90]
[384836395,1757582818128,-234.59,0.00022369,2]
[384836396,1757582818153,-516.8271437,0.00024088,2]
[384836397,1757582819422,203.93,0.00028137,120]
[384836405,1757582872092,500.0,0.00027397,120]
[384836406,1757582872782,300.0,0.00027397,120]
[384836407,1757582880377,508134.65356996,0.0002,2]
[384836507,1757582992746,160.11166658,0.0003013,120]
[384836515,1757583011527,159.36,0.00013946,2]
[384836516,1757583011608,159.36,0.00014943,2]
[384836517,1757583011661,159.36,0.00015939,2]
[384836518,1757583011842,159.36,0.00016935,2]
[384836519,1757583012036,159.36,0.00017931,2]
[384836520,1757583012250,159.36,0.00018927,2]
[384836521,1757583012489,159.36,0.00019923,2]
[384836551,1757583031452,-159.36,0.0002092,2]
[384836552,1757583031463,-159.36,0.00021916,2]
[384836553,1757583031473,-159.36,0.00022912,2]
[384836554,1757583031483,-159.36,0.00023908,2]
[384836555,1757583031493,-174.44288717,0.00023988,2]
[384836556,1757583031503,-1200.0,0.00023999,2]
[384836557,1757583031513,-1462.66951302,0.00024088,2]
[384836558,1757583031524,-1200.0,0.00024605,2]
[384836559,1757583031534,-250.0,0.00024606,2]
[384836560,1757583031544,-195.0,0.00024606,2]
[384836561,1757583031555,-1328.1187087,0.000249,2]
[384836562,1757583031565,-159.36,0.00024904,2]
[384836563,1757583031575,-151.0,0.00025188,2]
[384836564,1757583031585,-161.39,0.00025273,2]
[384836565,1757583031595,-553.52273661,0.00025722,2]
[384836566,1757583031605,-159.36,0.000259,2]
[384836567,1757583031616,-300.0,0.00026025,2]
[384836568,1757583031626,-300.0,0.00026025,2]
[384836569,1757583031636,-286.3761015,0.00026025,2]
[384836570,1757583031649,-13.6238985,0.00026025,2]
[384836571,1757583031659,-250.0,0.00026387,2]
[384836572,1757583031669,-159.36,0.00026896,2]
[384836573,1757583031679,-394.53900133,0.00027,15]
[384836574,1757583031688,-150.0,0.00027789,4]
[384836575,1757583031698,-150.0,0.00027789,4]
[384836576,1757583031707,-150.00000001,0.00027789,4]
[384836577,1757583031716,-150.0,0.00027789,4]
[384836578,1757583031725,-150.0,0.00027789,4]
[384836579,1757583031734,-150.0,0.00027789,4]
[384836580,1757583031743,-150.0,0.00027789,4]
[384836581,1757583031753,-1328.11870869,0.00027827,8]
[384836582,1757583031761,-1820.56853605,0.00027891,2]
[384836583,1757583031815,-10987.02146395,0.00027891,2]
[384836584,1757583031824,-159.36,0.00027893,2]
[384836585,1757583031833,-150.18,0.00028061,2]
[384836587,1757583031842,-1190.92,0.00028061,2]
[384836589,1757583031852,-400.0,0.00028164,2]
[384836591,1757583031861,-485.41,0.00028211,2]
[384836593,1757583031871,-248.71531821,0.0002837,2]
[384836595,1757583031881,-492.0,0.000286,2]
[384836596,1757583031891,-310.0,0.0002867,2]
[384836598,1757583031901,-198.0,0.00028676,7]
[384836600,1757583031910,-1500.0,0.000287,10]
[384836602,1757583031919,-153.0,0.00028746,2]
[384836604,1757583031928,-153.0,0.00028746,2]
[384836606,1757583031937,-153.0,0.00028746,2]
[384836608,1757583031947,-153.0,0.00028746,2]
[384836610,1757583031956,-153.0,0.00028746,2]
[384836612,1757583031965,-153.0,0.00028746,2]
[384836613,1757583031975,-153.0,0.00028746,2]
[384836614,1757583031985,-153.0,0.00028746,2]
[384836615,1757583031994,-153.0,0.00028746,2]
[384836618,1757583032004,-153.0,0.00028746,2]
[384836620,1757583032013,-153.0,0.00028746,2]
[384836621,1757583032022,-153.0,0.00028746,2]
[384836622,1757583032031,-153.0,0.00028746,2]
[384836623,1757583032040,-153.0,0.00028746,2]
[384836624,1757583032050,-153.0,0.00028746,2]
[384836625,1757583032060,-153.0,0.00028746,2]
[384836626,1757583032069,-153.0,0.00028746,2]
[384836627,1757583032078,-153.0,0.00028746,2]
[384836628,1757583032087,-153.0,0.00028746,2]
[384836629,1757583032097,-3000.0,0.000288,10]
[384836630,1757583032106,-153.0,0.0002883,2]
[384836631,1757583032117,-153.0,0.0002883,2]
[384836632,1757583032126,-153.0,0.0002883,2]
[384836633,1757583032135,-153.0,0.0002883,2]
[384836634,1757583032144,-153.0,0.0002883,2]
[384836635,1757583032153,-153.0,0.0002883,2]
[384836636,1757583032162,-153.0,0.0002883,2]
[384836637,1757583032171,-153.0,0.0002883,2]
[384836638,1757583032181,-153.0,0.0002883,2]
[384836639,1757583032190,-153.0,0.0002883,2]
[384836640,1757583032202,-153.0,0.0002883,2]
[384836641,1757583032211,-153.0,0.0002883,2]
[384836642,1757583032220,-153.0,0.0002883,2]
[384836643,1757583032230,-344.30534225,0.00028841,2]
[384836644,1757583032240,-4600.0,0.000289,10]
[384836645,1757583032250,-2000.0,0.00029,2]
[384836646,1757583032259,-273.07389095,0.00029132,2]
[384836647,1757583032269,-463.37516152,0.00029242,2]
[384836648,1757583032279,-274.27076834,0.00029242,2]
[384836649,1757583032291,-299.50280092,0.00029242,2]
[384836650,1757583032301,-10705.71881499,0.0002926,2]
[384836651,1757583032310,-150.0,0.00029296,2]
[384836652,1757583032319,-500.0,0.00029296,2]
[384836653,1757583032329,-500.0,0.00029296,2]
[384836654,1757583032338,-500.0,0.00029296,2]
[384836655,1757583032348,-150.0,0.00029296,2]
[384836656,1757583032358,-150.0,0.00029296,2]
[384836657,1757583032368,-150.0,0.00029296,2]
[384836658,1757583032378,-500.0,0.00029296,2]
[384836659,1757583032387,-150.0,0.00029296,2]
[384836660,1757583032397,-500.0,0.00029296,2]
[384836661,1757583032407,-500.0,0.00029296,2]
[384836662,1757583032416,-150.0,0.00029296,2]
[384836663,1757583032426,-500.0,0.00029296,2]
[384836664,1757583032436,-150.0,0.00029296,2]
[384836665,1757583032445,-150.0,0.00029296,2]
[384836666,1757583032455,-500.0,0.00029296,2]
[384836667,1757583032464,-500.0,0.00029296,2]
[384836668,1757583032474,-150.0,0.00029296,2]
[384836669,1757583032483,-150.0,0.00029296,2]
[384836670,1757583032493,-500.0,0.00029296,2]
[384836671,1757583032503,-150.0,0.00029296,2]
[384836672,1757583032512,-500.0,0.00029296,2]
[384836673,1757583032522,-500.0,0.00029296,2]
[384836674,1757583032531,-150.0,0.00029296,2]
[384836675,1757583032542,-150.0,0.00029296,2]
[384836676,1757583032553,-150.0,0.00029296,2]
[384836677,1757583032563,-150.0,0.00029296,2]
[384836678,1757583032573,-934.0,0.00029296,2]
[384836679,1757583032583,-500.0,0.00029296,2]
[384836680,1757583032593,-500.0,0.00029296,2]
[384836681,1757583032603,-150.0,0.00029296,2]
[384836682,1757583032613,-150.0,0.00029296,2]
[384836683,1757583032623,-150.0,0.00029296,2]
[384836684,1757583032632,-1000.0,0.000293,2]
[384836685,1757583032642,-4512.97680141,0.00029344,2]
[384836686,1757583032652,-593.06152185,0.00029354,2]
[384836687,1757583033242,-406.93847815,0.00029354,2]
[384836688,1757583033252,-596.73939854,0.00029375,2]
[384836689,1757583033285,-2010.53818167,0.00029375,2]
[384836690,1757583033296,-1714.61771979,0.00029375,2]
[384836691,1757583033306,-626.85661674,0.00029375,2]
[384836692,1757583033317,-1000.0,0.000294,2]
[384836693,1757583033326,-232.87029765,0.00029402,2]
[384836694,1757583033337,-168.0,0.00029406,2]
[384836695,1757583033347,-150.0,0.00029422,2]
[384836696,1757583033357,-150.0,0.00029422,2]
[384836697,1757583033367,-500.0,0.00029422,2]
[384836698,1757583033377,-150.9361489,0.00029422,2]
[384836699,1757583033387,-150.0,0.00029422,2]
[384836700,1757583033397,-500.0,0.00029422,2]
[384836701,1757583033407,-150.0,0.00029422,2]
[384836702,1757583033417,-500.0,0.00029422,2]
[384836703,1757583033428,-150.0,0.00029422,2]
[384836704,1757583033438,-150.0,0.00029422,2]
[384836705,1757583033447,-150.0,0.00029422,2]
[384836706,1757583033457,-150.0,0.00029422,2]
[384836707,1757583033467,-150.0,0.00029422,2]
[384836708,1757583033476,-150.0,0.00029422,2]
[384836709,1757583033486,-150.0,0.00029422,2]
[384836710,1757583033496,-10803.82956089,0.00029435,2]
[384836711,1757583033508,-337.30987513,0.00029435,2]
[384836712,1757583033520,-595.6389,0.00029435,2]
[384836713,1757583033548,-333.93430056,0.00029435,2]
[384836714,1757583033572,-4291.77905855,0.00029435,2]
[384836731,1757583037342,-357.89000101,0.00029194,2]
[384836732,1757583037589,-1679.10999899,0.00029194,2]
[384836733,1757583037599,-1320.5369028,0.00029373,2]
[384836734,1757583037609,-2823.04956574,0.00029435,2]
[384836819,1757583039342,-343.78637387,0.00029194,2]
[384836825,1757583039399,-581.21362613,0.00029194,2]
[384836828,1757583039410,-11551.65801387,0.00029435,2]
[384836862,1757583039719,-8729.27348572,0.00029435,2]
[384836870,1757583039785,-1435.82948294,0.00029435,2]
[384836872,1757583039797,-2778.71673075,0.00029435,2]
[384836874,1757583039810,-252.843652,0.00029435,2]
[384836877,1757583039823,-570.85807295,0.00029435,2]
[384836884,1757583039884,-661.16031972,0.00029435,2]
[384836887,1757583039897,-4473.29186202,0.00029435,2]
[384837161,1757583042458,-83.49079374,0.00029435,2]
[384837191,1757583042727,-38784.35844142,0.00029435,2]
[384837193,1757583042738,-151.0,0.00029441,7]
[384837195,1757583042748,-17701.4044232,0.00029443,2]
[384837197,1757583042758,-500.0,0.00029443,2]
[384837200,1757583042788,-221.63579712,0.00029443,2]
[384837202,1757583042802,-606.4396829,0.00029443,2]
[384837204,1757583042812,-400.0,0.00029443,7]
[384837206,1757583042823,-400.0,0.00029443,7]
[384837209,1757583042834,-914.19,0.00029443,7]
[384837212,1757583042844,-400.0,0.00029443,7]
[384837216,1757583042855,-605.27,0.00029443,7]
[384837218,1757583042865,-743.38,0.00029443,7]
[384837220,1757583042875,-400.0,0.00029443,7]
[384837222,1757583042886,-1543.09,0.00029443,7]
[384837224,1757583042897,-1796.23,0.00029443,7]
[384837226,1757583042908,-400.0,0.00029443,7]
[384837228,1757583042919,-607.15,0.00029443,7]
[384837231,1757583042929,-738.08,0.00029443,7]
[384837233,1757583042941,-1088.69,0.00029443,7]
[384837235,1757583042951,-738.86,0.00029443,7]
[384837237,1757583042961,-2551.83,0.00029443,7]
[384837239,1757583042971,-1514.65,0.00029443,7]
[384837241,1757583042981,-844.21,0.00029443,7]
[384837243,1757583042992,-467.12,0.00029443,7]
[384837246,1757583043003,-400.0,0.00029443,7]
[384837248,1757583043013,-454.28849797,0.00029443,7]
[384837250,1757583043023,-400.0,0.00029443,7]
[384837252,1757583043034,-400.0,0.00029443,7]
[384837254,1757583043043,-2060.25,0.00029443,7]
[384837256,1757583043056,-2175.62,0.00029443,7]
[384837258,1757583043066,-400.0,0.00029443,7]
[384837260,1757583043076,-400.0,0.00029443,7]
[384837262,1757583043086,-400.0,0.00029443,7]
[384837265,1757583043097,-452.31,0.00029443,7]
[384837267,1757583043107,-400.0,0.00029443,7]
[384837269,1757583043117,-724.09,0.00029443,7]
[384837271,1757583043128,-400.0,0.00029443,7]
[384837273,1757583043139,-400.0,0.00029443,7]
[384837275,1757583043149,-400.0,0.00029443,7]
[384837277,1757583043160,-1074.75,0.00029443,7]
[384837280,1757583043171,-400.0,0.00029443,7]
[384837282,1757583043182,-400.0,0.00029443,7]
[384837284,1757583043193,-400.0,0.00029443,7]
[384837286,1757583043205,-400.0,0.00029443,7]
[384837288,1757583043216,-400.0,0.00029443,7]
[384837290,1757583043226,-439.12,0.00029443,7]
[384837292,1757583043236,-659.49,0.00029443,7]
[384837294,1757583043247,-220.123358,0.00029443,7]
[384837297,1757583043257,-405.32895622,0.00029443,7]
[384837299,1757583043267,-667.2,0.00029443,7]
[384837301,1757583043278,-400.0,0.00029443,7]
[384837303,1757583043288,-400.0,0.00029443,7]
[384837305,1757583043299,-709.83,0.00029443,7]
[384837307,1757583043310,-400.0,0.00029443,7]
[384837309,1757583043320,-400.0,0.00029443,7]
[384837311,1757583043330,-400.0,0.00029443,7]
[384837313,1757583043340,-400.0,0.00029443,7]
[384837315,1757583043351,-686.02,0.00029443,7]
[384837317,1757583043361,-159.93,0.00029443,2]
[384837320,1757583043371,-7800.69229417,0.00029444,2]
[384837322,1757583043381,-88507.022116,0.00029444,2]
[384837324,1757583043394,-49639.3121683,0.00029444,2]
[384837326,1757583043405,-151.0,0.00029444,7]
[384837328,1757583043415,-719.219931,0.00029444,7]
[384837330,1757583043426,-719.219931,0.00029444,7]
[384837332,1757583043436,-151.0,0.00029444,7]
[384837334,1757583043447,-5216.873984,0.00029444,7]
[384837336,1757583043456,-719.219931,0.00029444,7]
[384837338,1757583043466,-719.219931,0.00029444,7]
[384837340,1757583043476,-5216.873984,0.00029444,7]
[384837342,1757583043487,-151.0,0.00029444,7]
[384837345,1757583043498,-151.0,0.00029444,7]
[384837347,1757583043507,-151.0,0.00029444,7]
[384837349,1757583043517,-5216.873984,0.00029444,7]
[384837351,1757583043527,-151.0,0.00029444,7]
[384837353,1757583043538,-5216.873984,0.00029444,7]
[384837355,1757583043548,-151.0,0.00029444,7]
[384837357,1757583043558,-151.0,0.00029444,7]
[384837359,1757583043568,-151.0,0.00029444,7]
[384837361,1757583043578,-186.58874,0.00029444,7]
[384837363,1757583043589,-186.58874,0.00029444,7]
[384837365,1757583043599,-151.0,0.00029444,7]
[384837368,1757583043611,-151.0,0.00029444,7]
[384837370,1757583043621,-186.58874,0.00029444,7]
[384837372,1757583043631,-186.58874,0.00029444,7]
[384837374,1757583043641,-151.0,0.00029444,7]
[384837376,1757583043652,-151.0,0.00029444,7]
[384837378,1757583043662,-151.0,0.00029444,7]
[384837380,1757583043673,-151.0,0.00029444,7]
[384837382,1757583043683,-151.0,0.00029444,7]
[384837385,1757583043694,-151.0,0.00029444,7]
[384837387,1757583043704,-151.0,0.00029444,7]
[384837389,1757583043717,-151.0,0.00029444,7]
[384837416,1757583044074,-191.878333,0.00029444,7]
[384837418,1757583044083,-151.0,0.00029444,7]
[384837420,1757583044093,-191.878333,0.00029444,7]
[384837422,1757583044103,-191.878333,0.00029444,7]
[384837424,1757583044113,-199.929814,0.00029444,7]
[384837426,1757583044123,-155.372899,0.00029444,7]
[384837428,1757583044132,-191.878333,0.00029444,7]
[384837430,1757583044142,-199.929814,0.00029444,7]
[384837432,1757583044151,-237.686117,0.00029444,7]
[384837434,1757583044160,-199.929814,0.00029444,7]
[384837436,1757583044169,-237.686117,0.00029444,7]
[384837438,1757583044179,-151.0,0.00029444,7]
[384837440,1757583044188,-199.929814,0.00029444,7]
[384837442,1757583044199,-237.686117,0.00029444,7]
[384837445,1757583044213,-237.686117,0.00029444,7]
[384837446,1757583044222,-151.0,0.00029444,7]
[384837449,1757583044232,-17701.4044232,0.00029444,2]
[384837451,1757583044245,-33092.8747789,0.00029444,2]
[384837453,1757583044255,-197.71621947,0.00029444,2]
[384837455,1757583044264,-17701.4044232,0.00029445,2]
[384837457,1757583044275,-16546.4373894,0.00029445,2]
[384837459,1757583044284,-151.0,0.00029445,7]
[384837461,1757583044294,-719.219931,0.00029445,7]
[384837463,1757583044303,-719.219931,0.00029445,7]
[384837465,1757583044312,-5216.873984,0.00029445,7]
[384837467,1757583044322,-719.219931,0.00029445,7]
[384837469,1757583044331,-719.219931,0.00029445,7]
[384837471,1757583044340,-5216.873984,0.00029445,7]
[384837473,1757583044353,-159.582614,0.00029445,7]
[384837475,1757583044364,-151.0,0.00029445,7]
[384837477,1757583044375,-5216.873984,0.00029445,7]
[384837479,1757583044384,-151.0,0.00029445,7]
[384837481,1757583044394,-5216.873984,0.00029445,7]
[384837483,1757583044403,-151.0,0.00029445,7]
[384837485,1757583044413,-151.0,0.00029445,7]
[384837487,1757583044423,-151.0,0.00029445,7]
[384837489,1757583044432,-186.58874,0.00029445,7]
[384837491,1757583044441,-186.58874,0.00029445,7]
[384837493,1757583044451,-186.58874,0.00029445,7]
[384837495,1757583044461,-186.58874,0.00029445,7]
[384837497,1757583044470,-151.0,0.00029445,7]
[384837499,1757583044480,-151.0,0.00029445,7]
[384837501,1757583044489,-224.977045,0.00029445,7]
[384837503,1757583044498,-151.0,0.00029445,7]
[384837505,1757583044507,-151.0,0.00029445,7]
[384837507,1757583044516,-151.0,0.00029445,7]
[384837509,1757583044525,-151.0,0.00029445,7]
[384837511,1757583044535,-151.0,0.00029445,7]
[384837513,1757583044544,-191.878333,0.00029445,7]
[384837515,1757583044554,-190.467683,0.00029445,7]
[384837517,1757583044563,-191.878333,0.00029445,7]
[384837519,1757583044572,-191.878333,0.00029445,7]
[384837521,1757583044582,-199.929814,0.00029445,7]
[384837523,1757583044591,-199.929814,0.00029445,7]
[384837525,1757583044600,-191.878333,0.00029445,7]
[384837527,1757583044610,-199.929814,0.00029445,7]
[384837529,1757583044619,-237.686117,0.00029445,7]
[384837531,1757583044629,-199.929814,0.00029445,7]
[384837533,1757583044638,-237.686117,0.00029445,7]
[384837535,1757583044647,-199.929814,0.00029445,7]
[384837537,1757583044656,-237.686117,0.00029445,7]
[384837539,1757583044666,-199.929814,0.00029445,7]
[384837541,1757583044675,-237.686117,0.00029445,7]
[384837543,1757583044684,-155.863058,0.00029445,7]
[384837545,1757583044693,-199.929814,0.00029445,7]
[384837547,1757583044703,-237.686117,0.00029445,7]
[384837549,1757583044712,-199.929814,0.00029445,7]
[384837551,1757583044721,-237.686117,0.00029445,7]
[384837553,1757583044731,-237.686117,0.00029445,7]
[384837555,1757583044740,-237.686117,0.00029445,7]
[384837557,1757583044749,-151.0,0.00029445,7]
[384837559,1757583044759,-53104.2132696,0.00029445,2]
[384837561,1757583044768,-49639.3121683,0.00029445,2]
[384837563,1757583044778,-17701.4044232,0.00029445,2]
[384837565,1757583044788,-199.73187666,0.00029452,2]
[384837567,1757583044799,-500.0,0.00029452,2]
[384837569,1757583044809,-357.71401324,0.00029452,2]
[384837571,1757583044818,-370223.703621,0.00029453,7]
[384837737,1757583046410,-153.0,0.00028746,2]
[384837739,1757583046420,-153.0,0.00028746,2]
[384837741,1757583046429,-137.37196412,0.00028746,2]
[384837743,1757583046440,-15.62803588,0.00028746,2]
[384837745,1757583046449,-153.0,0.00028746,2]
[384837747,1757583046458,-153.0,0.00028746,2]
[384837749,1757583046467,-333.088699,0.00029444,7]
[384837751,1757583046476,-100.17577108,0.00029453,7]
[384837754,1757583046488,-336.14490228,0.00029453,7]
[384837756,1757583046497,-408.48,0.00029453,7]
[384837758,1757583046506,-359.07509773,0.00029453,7]
[384837765,1757583046571,-333.088699,0.00029445,7]
[384837767,1757583046581,-754.57490227,0.00029453,7]
[384837770,1757583046591,-528.29,0.00029453,7]
[384837771,1757583046600,-784.45,0.00029453,7]
[384837773,1757583046609,-1310.48,0.00029453,7]
[384837775,1757583046618,-1285.14,0.00029453,7]
[384837777,1757583046627,-938.46,0.00029453,7]
[384837779,1757583046636,-400.0,0.00029453,7]
[384837781,1757583046645,-400.0,0.00029453,7]
[384837783,1757583046653,-400.0,0.00029453,7]
[384837785,1757583046663,-1303.79,0.00029453,7]
[384837787,1757583046672,-1013.24,0.00029453,7]
[384837789,1757583046681,-420.48,0.00029453,7]
[384837791,1757583046691,-672.7,0.00029453,7]
[384837793,1757583046700,-1216.16,0.00029453,7]
[384837795,1757583046709,-400.0,0.00029453,7]
[384837797,1757583046718,-688.88,0.00029453,7]
[384837799,1757583046727,-400.0,0.00029453,7]
[384837801,1757583046736,-5088.19,0.00029453,7]
[384837803,1757583046745,-3048.58,0.00029453,7]
[384837805,1757583046755,-587.61,0.00029453,7]
[384837807,1757583046764,-813.46,0.00029453,7]
[384837809,1757583046773,-1345.81,0.00029453,7]
[384837811,1757583046782,-95.92655601,0.00029453,7]
[384837814,1757583046794,-1462.96344399,0.00029453,7]
[384837816,1757583046803,-2277.67,0.00029453,7]
[384837818,1757583046812,-1196.82,0.00029453,7]
[384837820,1757583046821,-814.4,0.00029453,7]
[384837822,1757583046830,-516.4,0.00029453,7]
[384837823,1757583046840,-3877.86,0.00029453,7]
[384837826,1757583046850,-2426.1,0.00029453,7]
[384837828,1757583046859,-1034.46,0.00029453,7]
[384837829,1757583046868,-400.0,0.00029453,7]
[384837832,1757583046878,-1243.13,0.00029453,2]
[384837834,1757583046888,-2750.45,0.00029453,7]
[384837836,1757583046897,-582.3,0.00029453,7]
[384837838,1757583046907,-719.219931,0.00029453,7]
[384837840,1757583046915,-719.219931,0.00029453,7]
[384837842,1757583046925,-719.219931,0.00029453,7]
[384837844,1757583046934,-719.219931,0.00029453,7]
[384837846,1757583046943,-719.219931,0.00029453,7]
[384837848,1757583046952,-5216.873984,0.00029453,7]
[384837850,1757583046961,-719.219931,0.00029453,7]
[384837852,1757583046971,-5216.873984,0.00029453,7]
[384837853,1757583046980,-400.0,0.00029453,7]
[384837856,1757583046989,-719.219931,0.00029453,7]
[384837858,1757583046999,-5216.873984,0.00029453,7]
[384837860,1757583047008,-719.219931,0.00029453,7]
[384837862,1757583047018,-212.89373682,0.00029453,7]
[384837864,1757583047028,-5216.873984,0.00029453,7]
[384837866,1757583047038,-151.0,0.00029453,7]
[384837868,1757583047047,-151.0,0.00029453,7]
[384837870,1757583047058,-400.0,0.00029453,7]
[384837872,1757583047067,-5093.59440665,0.00029453,7]
[384837874,1757583047080,-123.27957735,0.00029453,7]
[384837876,1757583047089,-5216.873984,0.00029453,7]
[384837878,1757583047099,-151.0,0.00029453,7]
[384837880,1757583047108,-151.0,0.00029453,7]
[384837882,1757583047119,-5216.873984,0.00029453,7]